[Event "Titled Tuesday Blitz August 16 Late 2022"]
[White "Al-Tarboush, Ward"]
[Black "Janaszak, Dawid"]
[WhiteFideId "7601450"]
[BlackFideId "1119206"]
[WhiteElo "2234"]
[BlackElo "2165"]
[Result "1-0"]
[Round "08"]
[TimeControl "180+1"]
[Date "2022.08.16"]
[WhiteClock "0:00:07"]
[BlackClock "0:00:01"]

1. e4 {[%clk 0:03:00]}  c5 {[%clk 0:02:59]} 2. Nf3 {[%clk 0:03:00]}  Nc6 {[%clk 0:02:59]} 3. d4 {[%clk 0:03:01]}  cxd4 {[%clk 0:03:00]} 4. Nxd4 {[%clk 0:03:01]}  g6 {[%clk 0:03:01]} 5. c4 {[%clk 0:03:01]}  Bg7 {[%clk 0:03:01]} 6. Be3 {[%clk 0:03:02]}  Qb6 {[%clk 0:03:01]} 7. Nb3 {[%clk 0:03:00]}  Qd8 {[%clk 0:02:59]} 8. Qd2 {[%clk 0:02:56]}  a5 {[%clk 0:02:51]} 9. Nc3 {[%clk 0:02:54]}  a4 {[%clk 0:02:51]} 10. Nd4 {[%clk 0:02:54]}  Nf6 {[%clk 0:02:49]} 11. Be2 {[%clk 0:02:27]}  Qa5 {[%clk 0:02:47]} 12. O-O {[%clk 0:02:21]}  Nxe4 {[%clk 0:02:10]} 13. Nxe4 {[%clk 0:01:48]}  Qxd2 {[%clk 0:02:08]} 14. Bxd2 {[%clk 0:01:40]}  Bxd4 {[%clk 0:02:06]} 15. Nc3 {[%clk 0:01:33]}  a3 {[%clk 0:02:01]} 16. b3 {[%clk 0:01:32]}  d6 {[%clk 0:01:56]} 17. Rac1 {[%clk 0:01:32]}  O-O {[%clk 0:01:49]} 18. Nb5 {[%clk 0:01:27]}  Bb2 {[%clk 0:01:49]} 19. Rcd1 {[%clk 0:01:26]}  Bf5 {[%clk 0:01:48]} 20. Be3 {[%clk 0:01:23]}  Nb4 {[%clk 0:01:41]} 21. Bd2 {[%clk 0:01:05]}  Nxa2 {[%clk 0:01:36]} 22. Ra1 {[%clk 0:00:57]}  Bxa1 {[%clk 0:01:33]} 23. Rxa1 {[%clk 0:00:58]}  d5 {[%clk 0:00:59]} 24. c5 {[%clk 0:00:50]}  Rfc8 {[%clk 0:00:51]} 25. Rxa2 {[%clk 0:00:43]}  Rxc5 {[%clk 0:00:49]} 26. Rxa3 {[%clk 0:00:29]}  Rxa3 {[%clk 0:00:40]} 27. Nxa3 {[%clk 0:00:30]}  d4 {[%clk 0:00:40]} 28. g4 {[%clk 0:00:25]}  Bc2 {[%clk 0:00:38]} 29. b4 {[%clk 0:00:19]}  Rc8 {[%clk 0:00:38]} 30. f4 {[%clk 0:00:09]}  d3 {[%clk 0:00:32]} 31. Bf3 {[%clk 0:00:09]}  Ra8 {[%clk 0:00:32]} 32. Nc4 {[%clk 0:00:08]}  Ra1+ {[%clk 0:00:30]} 33. Kf2 {[%clk 0:00:08]}  Ra2 {[%clk 0:00:30]} 34. Ke3 {[%clk 0:00:08]}  b5 {[%clk 0:00:26]} 35. Ne5 {[%clk 0:00:08]}  Ra3 {[%clk 0:00:21]} 36. Bd5 {[%clk 0:00:08]}  e6 {[%clk 0:00:20]} 37. Bc6 {[%clk 0:00:08]}  Ra1 {[%clk 0:00:18]} 38. Nf3 {[%clk 0:00:07]}  Ba4 {[%clk 0:00:16]} 39. Be4 {[%clk 0:00:07]}  f5 {[%clk 0:00:15]} 40. gxf5 {[%clk 0:00:07]}  gxf5 {[%clk 0:00:16]} 41. Bxd3 {[%clk 0:00:07]}  Ra3 {[%clk 0:00:15]} 42. Ke2 {[%clk 0:00:06]}  Ra2 {[%clk 0:00:16]} 43. Nd4 {[%clk 0:00:06]}  Kf7 {[%clk 0:00:16]} 44. Nxb5 {[%clk 0:00:06]}  Ra1 {[%clk 0:00:09]} 45. Nd4 {[%clk 0:00:06]}  Rh1 {[%clk 0:00:07]} 46. Nf3 {[%clk 0:00:06]}  Bc6 {[%clk 0:00:06]} 47. Ne5+ {[%clk 0:00:06]}  Kg7 {[%clk 0:00:05]} 48. Nxc6 {[%clk 0:00:07]}  Rxh2+ {[%clk 0:00:05]} 49. Kd1 {[%clk 0:00:07]}  Rh1+ {[%clk 0:00:06]} 50. Kc2 {[%clk 0:00:07]}  Kf6 {[%clk 0:00:07]} 51. b5 {[%clk 0:00:08]}  e5 {[%clk 0:00:02]} 52. fxe5+ {[%clk 0:00:07]}  Ke6 {[%clk 0:00:01]} 53. Bc4+ {[%clk 0:00:08]}  Kd7 {[%clk 0:00:02]} 54. e6+ {[%clk 0:00:08]}  Kc7 {[%clk 0:00:03]} 55. e7 {[%clk 0:00:08]}  Ra1 {[%clk 0:00:01]} 56. e8=Q {[%clk 0:00:07]} 1-0


[Site "https://www.chess.com"]

[Event "Titled Tuesday Blitz August 16 Late 2022"]
[White "Aldokhin, Ivan"]
[Black "Pakleza, Zbigniew"]
[WhiteFideId "24115720"]
[BlackFideId "1119290"]
[WhiteElo "2246"]
[BlackElo "2411"]
[Result "1/2-1/2"]
[Round "08"]
[TimeControl "180+1"]
[Date "2022.08.16"]
[WhiteClock "0:01:14"]
[BlackClock "0:00:30"]

1. e4 {[%clk 0:03:00]}  d6 {[%clk 0:02:59]} 2. d4 {[%clk 0:03:00]}  Nf6 {[%clk 0:03:00]} 3. Nc3 {[%clk 0:03:00]}  c6 {[%clk 0:03:00]} 4. f4 {[%clk 0:02:58]}  Qb6 {[%clk 0:02:59]} 5. e5 {[%clk 0:02:49]}  Nd5 {[%clk 0:02:58]} 6. Bc4 {[%clk 0:02:41]}  Nxc3 {[%clk 0:02:43]} 7. bxc3 {[%clk 0:02:40]}  Bf5 {[%clk 0:02:43]} 8. e6 {[%clk 0:02:30]}  Bxe6 {[%clk 0:02:13]} 9. Bxe6 {[%clk 0:02:27]}  fxe6 {[%clk 0:02:14]} 10. Nf3 {[%clk 0:02:26]}  Qb5 {[%clk 0:02:02]} 11. Ng5 {[%clk 0:02:12]}  Kd7 {[%clk 0:01:41]} 12. Bd2 {[%clk 0:02:09]}  b6 {[%clk 0:01:34]} 13. a4 {[%clk 0:01:45]}  Qc4 {[%clk 0:01:18]} 14. Qg4 {[%clk 0:01:42]}  Na6 {[%clk 0:01:10]} 15. Nf7 {[%clk 0:01:19]}  Rg8 {[%clk 0:01:05]} 16. Nh6 {[%clk 0:01:19]}  Rh8 {[%clk 0:01:00]} 17. Nf7 {[%clk 0:01:19]}  Rg8 {[%clk 0:00:59]} 18. Nh6 {[%clk 0:01:19]}  Rh8 {[%clk 0:00:30]} 19. Nf7 {[%clk 0:01:14]} 1/2-1/2


[Site "https://www.chess.com"]

[Event "Titled Tuesday Blitz August 16 Late 2022"]
[White "Avila Pavas, Santiago"]
[Black "Lenderman, Aleksandr"]
[WhiteFideId "4437128"]
[BlackFideId "2021285"]
[WhiteElo "2291"]
[BlackElo "2607"]
[Result "0-1"]
[Round "08"]
[TimeControl "180+1"]
[Date "2022.08.16"]
[WhiteClock "0:00:12"]
[BlackClock "0:00:50"]

1. b3 {[%clk 0:03:00]}  d5 {[%clk 0:02:55]} 2. Bb2 {[%clk 0:03:01]}  Bg4 {[%clk 0:02:54]} 3. h3 {[%clk 0:03:01]}  Bh5 {[%clk 0:02:54]} 4. d3 {[%clk 0:03:02]}  e6 {[%clk 0:02:53]} 5. Nd2 {[%clk 0:03:02]}  Nf6 {[%clk 0:02:53]} 6. Ngf3 {[%clk 0:03:02]}  Nbd7 {[%clk 0:02:48]} 7. d4 {[%clk 0:03:02]}  Bd6 {[%clk 0:02:46]} 8. e3 {[%clk 0:03:02]}  O-O {[%clk 0:02:37]} 9. Be2 {[%clk 0:03:02]}  h6 {[%clk 0:02:33]} 10. O-O {[%clk 0:03:00]}  Bg6 {[%clk 0:02:33]} 11. Ne5 {[%clk 0:02:59]}  Bh7 {[%clk 0:02:32]} 12. Bd3 {[%clk 0:02:55]}  Bxd3 {[%clk 0:02:27]} 13. cxd3 {[%clk 0:02:56]}  c5 {[%clk 0:02:27]} 14. Nxd7 {[%clk 0:02:51]}  Nxd7 {[%clk 0:02:28]} 15. Rc1 {[%clk 0:02:40]}  cxd4 {[%clk 0:02:27]} 16. Bxd4 {[%clk 0:02:41]}  Qa5 {[%clk 0:02:25]} 17. Qg4 {[%clk 0:02:35]}  Ne5 {[%clk 0:02:17]} 18. Bxe5 {[%clk 0:02:27]}  Bxe5 {[%clk 0:02:18]} 19. Nf3 {[%clk 0:02:28]}  Bf6 {[%clk 0:02:10]} 20. Rc2 {[%clk 0:02:28]}  Rac8 {[%clk 0:02:07]} 21. Rfc1 {[%clk 0:02:28]}  Rxc2 {[%clk 0:02:05]} 22. Rxc2 {[%clk 0:02:29]}  Qb5 {[%clk 0:02:01]} 23. d4 {[%clk 0:02:15]}  Qd7 {[%clk 0:02:00]} 24. Ne1 {[%clk 0:01:55]}  Rc8 {[%clk 0:01:59]} 25. Qd1 {[%clk 0:01:56]}  Rc6 {[%clk 0:01:57]} 26. Rxc6 {[%clk 0:01:54]}  Qxc6 {[%clk 0:01:58]} 27. Qc2 {[%clk 0:01:54]}  Qxc2 {[%clk 0:01:55]} 28. Nxc2 {[%clk 0:01:55]}  Be7 {[%clk 0:01:55]} 29. Kf1 {[%clk 0:01:55]}  Kf8 {[%clk 0:01:53]} 30. Ke2 {[%clk 0:01:55]}  Ke8 {[%clk 0:01:54]} 31. Kd3 {[%clk 0:01:56]}  Kd7 {[%clk 0:01:54]} 32. f3 {[%clk 0:01:55]}  Kc6 {[%clk 0:01:51]} 33. e4 {[%clk 0:01:55]}  Bd6 {[%clk 0:01:49]} 34. Ne3 {[%clk 0:01:54]}  Bf4 {[%clk 0:01:45]} 35. exd5+ {[%clk 0:01:54]}  exd5 {[%clk 0:01:45]} 36. Nc2 {[%clk 0:01:33]}  Kd6 {[%clk 0:01:43]} 37. Na3 {[%clk 0:01:29]}  Ke6 {[%clk 0:01:40]} 38. Nb5 {[%clk 0:01:29]}  a6 {[%clk 0:01:39]} 39. Nc3 {[%clk 0:01:29]}  Bd6 {[%clk 0:01:33]} 40. Ke3 {[%clk 0:01:28]}  g5 {[%clk 0:01:25]} 41. g4 {[%clk 0:01:26]}  Bb4 {[%clk 0:01:24]} 42. Nd1 {[%clk 0:01:23]}  f5 {[%clk 0:01:24]} 43. Nb2 {[%clk 0:01:15]}  Bd6 {[%clk 0:01:17]} 44. Nd3 {[%clk 0:01:15]}  Kf6 {[%clk 0:01:17]} 45. Nc5 {[%clk 0:00:48]}  fxg4 {[%clk 0:00:59]} 46. hxg4 {[%clk 0:00:46]}  Bxc5 {[%clk 0:00:59]} 47. dxc5 {[%clk 0:00:46]}  Ke5 {[%clk 0:01:00]} 48. b4 {[%clk 0:00:44]}  d4+ {[%clk 0:00:53]} 49. Kd3 {[%clk 0:00:44]}  Kd5 {[%clk 0:00:51]} 50. a4 {[%clk 0:00:42]}  a5 {[%clk 0:00:50]} 51. c6 {[%clk 0:00:11]}  bxc6 {[%clk 0:00:49]} 52. bxa5 {[%clk 0:00:12]}  c5 {[%clk 0:00:50]} 53. a6 {[%clk 0:00:12]}  c4+ {[%clk 0:00:50]} 0-1


[Site "https://www.chess.com"]

[Event "Titled Tuesday Blitz August 16 Late 2022"]
[White "Barria Zuniga, Daniel"]
[Black "Pires, Marcos Vinicius Torsani"]
[WhiteFideId "3400816"]
[BlackFideId "2118939"]
[WhiteElo "2414"]
[BlackElo "2273"]
[Result "1-0"]
[Round "08"]
[TimeControl "180+1"]
[Date "2022.08.18"]
[WhiteClock "0:00:00"]
[BlackClock "0:00:00"]

1. d4 {[%clk 0:00:00]}  Nf6 {[%clk 0:00:00]} 2. c4 {[%clk 0:00:00]}  g6 {[%clk 0:00:00]} 3. Nc3 {[%clk 0:00:00]}  d5 {[%clk 0:00:00]} 4. Bf4 {[%clk 0:00:00]}  Bg7 {[%clk 0:00:00]} 5. e3 {[%clk 0:00:00]}  O-O {[%clk 0:00:00]} 6. Rc1 {[%clk 0:00:00]}  c6 {[%clk 0:00:00]} 7. h3 {[%clk 0:00:00]}  e6 {[%clk 0:00:00]} 8. Nf3 {[%clk 0:00:00]}  b6 {[%clk 0:00:00]} 9. Be2 {[%clk 0:00:00]}  Bb7 {[%clk 0:00:00]} 10. O-O {[%clk 0:00:00]}  Nbd7 {[%clk 0:00:00]} 11. b4 {[%clk 0:00:00]}  Rc8 {[%clk 0:00:00]} 12. Bh2 {[%clk 0:00:00]}  dxc4 {[%clk 0:00:00]} 13. Bxc4 {[%clk 0:00:00]}  c5 {[%clk 0:00:00]} 14. bxc5 {[%clk 0:00:00]}  bxc5 {[%clk 0:00:00]} 15. Nb5 {[%clk 0:00:00]}  Bxf3 {[%clk 0:00:00]} 16. Qxf3 {[%clk 0:00:00]}  cxd4 {[%clk 0:00:00]} 17. exd4 {[%clk 0:00:00]}  Nb6 {[%clk 0:00:00]} 18. Bb3 {[%clk 0:00:00]}  Rxc1 {[%clk 0:00:00]} 19. Rxc1 {[%clk 0:00:00]}  Nfd5 {[%clk 0:00:00]} 20. Bd6 {[%clk 0:00:00]}  Re8 {[%clk 0:00:00]} 21. Nc7 {[%clk 0:00:00]}  Nxc7 {[%clk 0:00:00]} 22. Rxc7 {[%clk 0:00:00]}  Qf6 {[%clk 0:00:00]} 23. Qxf6 {[%clk 0:00:00]}  Bxf6 {[%clk 0:00:00]} 24. Be5 {[%clk 0:00:00]}  Bxe5 {[%clk 0:00:00]} 25. dxe5 {[%clk 0:00:00]}  a5 {[%clk 0:00:00]} 26. Rb7 {[%clk 0:00:00]}  Nd5 {[%clk 0:00:00]} 27. Rb5 {[%clk 0:00:00]}  Nf4 {[%clk 0:00:00]} 28. Rxa5 {[%clk 0:00:00]}  Rc8 {[%clk 0:00:00]} 29. Kh2 {[%clk 0:00:00]}  Nd3 {[%clk 0:00:00]} 30. Kg3 {[%clk 0:00:00]}  h5 {[%clk 0:00:00]} 31. h4 {[%clk 0:00:00]}  Rc1 {[%clk 0:00:00]} 32. Kf3 {[%clk 0:00:00]}  Re1 {[%clk 0:00:00]} 33. a4 {[%clk 0:00:00]}  Nxe5+ {[%clk 0:00:00]} 34. Kg3 {[%clk 0:00:00]}  Nd3 {[%clk 0:00:00]} 35. Ra8+ {[%clk 0:00:00]}  Kg7 {[%clk 0:00:00]} 36. a5 {[%clk 0:00:00]}  Rc1 {[%clk 0:00:00]} 37. a6 {[%clk 0:00:00]}  Rc3 {[%clk 0:00:00]} 38. a7 {[%clk 0:00:00]}  Rxb3 {[%clk 0:00:00]} 39. Rg8+ {[%clk 0:00:00]}  Kxg8 {[%clk 0:00:00]} 40. a8=Q+ {[%clk 0:00:00]}  Kg7 {[%clk 0:00:00]} 41. Qa1+ {[%clk 0:00:00]}  e5 {[%clk 0:00:00]} 42. f3 {[%clk 0:00:00]}  f6 {[%clk 0:00:00]} 43. Qa7+ {[%clk 0:00:00]}  Kh6 {[%clk 0:00:00]} 44. Qf7 {[%clk 0:00:00]}  Rb8 {[%clk 0:00:00]} 45. Qxf6 {[%clk 0:00:00]}  Nf4 {[%clk 0:00:00]} 46. Qg5+ {[%clk 0:00:00]}  Kh7 {[%clk 0:00:00]} 47. Qxe5 {[%clk 0:00:00]}  Rf8 {[%clk 0:00:00]} 48. Qxf4 {[%clk 0:00:00]}  Rxf4 {[%clk 0:00:00]} 49. Kxf4 {[%clk 0:00:00]}  Kg7 {[%clk 0:00:00]} 50. Kg5 {[%clk 0:00:00]}  Kf7 {[%clk 0:00:00]} 51. f4 {[%clk 0:00:00]}  Kg7 {[%clk 0:00:00]} 52. f5 {[%clk 0:00:00]}  gxf5 {[%clk 0:00:00]} 53. Kxf5 {[%clk 0:00:00]}  Kh6 {[%clk 0:00:00]} 54. g3 {[%clk 0:00:00]}  Kh7 {[%clk 0:00:00]} 55. Kg5 {[%clk 0:00:00]} 1-0


[Site "https://www.chess.com"]

[Event "Titled Tuesday Blitz August 16 Late 2022"]
[White "Csonka, Balazs"]
[Black "Goncalves, Davi Sulzbacher"]
[WhiteFideId "742910"]
[BlackFideId "2154510"]
[WhiteElo "2404"]
[BlackElo "2107"]
[Result "1-0"]
[Round "08"]
[TimeControl "180+1"]
[Date "2022.08.16"]
[WhiteClock "0:01:05"]
[BlackClock "0:02:00"]

1. c4 {[%clk 0:02:59]}  Nf6 {[%clk 0:03:00]} 2. Nc3 {[%clk 0:02:59]}  Nc6 {[%clk 0:03:00]} 3. d4 {[%clk 0:02:53]}  d5 {[%clk 0:03:00]} 4. Nf3 {[%clk 0:02:51]}  Bd7 {[%clk 0:02:58]} 5. cxd5 {[%clk 0:02:51]}  Nb8 {[%clk 0:02:50]} 6. e4 {[%clk 0:02:45]}  c6 {[%clk 0:02:48]} 7. dxc6 {[%clk 0:02:37]}  Nxc6 {[%clk 0:02:47]} 8. e5 {[%clk 0:02:26]}  Ng4 {[%clk 0:02:46]} 9. h3 {[%clk 0:02:25]}  Nh6 {[%clk 0:02:46]} 10. d5 {[%clk 0:02:21]}  Nb4 {[%clk 0:02:31]} 11. a3 {[%clk 0:02:16]}  Na6 {[%clk 0:02:29]} 12. Bxa6 {[%clk 0:01:27]}  bxa6 {[%clk 0:02:30]} 13. Bxh6 {[%clk 0:01:27]}  gxh6 {[%clk 0:02:30]} 14. e6 {[%clk 0:01:27]}  Bb5 {[%clk 0:02:09]} 15. exf7+ {[%clk 0:01:09]}  Kxf7 {[%clk 0:02:03]} 16. Ne5+ {[%clk 0:01:07]}  Kg8 {[%clk 0:02:00]} 17. Qg4+ {[%clk 0:01:05]} 1-0


[Site "https://www.chess.com"]

[Event "Titled Tuesday Blitz August 16 Late 2022"]
[White "Diem, Thomas"]
[Black "Ferreira, Vitor Hugo Vieira"]
[WhiteFideId "30937841"]
[BlackFideId "2119765"]
[WhiteElo "1998"]
[BlackElo "2168"]
[Result "0-1"]
[Round "08"]
[TimeControl "180+1"]
[Date "2022.08.18"]
[WhiteClock "0:00:00"]
[BlackClock "0:00:00"]

1. c4 {[%clk 0:00:00]}  c6 {[%clk 0:00:00]} 2. Nf3 {[%clk 0:00:00]}  d5 {[%clk 0:00:00]} 3. e3 {[%clk 0:00:00]}  Nf6 {[%clk 0:00:00]} 4. Nc3 {[%clk 0:00:00]}  e6 {[%clk 0:00:00]} 5. b3 {[%clk 0:00:00]}  Nbd7 {[%clk 0:00:00]} 6. Bb2 {[%clk 0:00:00]}  Bd6 {[%clk 0:00:00]} 7. Be2 {[%clk 0:00:00]}  O-O {[%clk 0:00:00]} 8. O-O {[%clk 0:00:00]}  b6 {[%clk 0:00:00]} 9. d4 {[%clk 0:00:00]}  Bb7 {[%clk 0:00:00]} 10. Qc2 {[%clk 0:00:00]}  Qe7 {[%clk 0:00:00]} 11. e4 {[%clk 0:00:00]}  e5 {[%clk 0:00:00]} 12. dxe5 {[%clk 0:00:00]}  Nxe5 {[%clk 0:00:00]} 13. Nxe5 {[%clk 0:00:00]}  Qxe5 {[%clk 0:00:00]} 14. f4 {[%clk 0:00:00]}  Qd4+ {[%clk 0:00:00]} 15. Kh1 {[%clk 0:00:00]}  Nxe4 {[%clk 0:00:00]} 16. Nxd5 {[%clk 0:00:00]}  Nf2+ {[%clk 0:00:00]} 17. Rxf2 {[%clk 0:00:00]}  Qxf2 {[%clk 0:00:00]} 18. Qf5 {[%clk 0:00:00]}  cxd5 {[%clk 0:00:00]} 19. Bd3 {[%clk 0:00:00]}  Qh4 {[%clk 0:00:00]} 0-1


[Site "https://www.chess.com"]

[Event "Titled Tuesday Blitz August 16 Late 2022"]
[White "Ferriz Barrios, Andres"]
[Black "Burke, Paul"]
[WhiteFideId "5104467"]
[BlackFideId "2605767"]
[WhiteElo "2102"]
[BlackElo "1918"]
[Result "1-0"]
[Round "08"]
[TimeControl "180+1"]
[Date "2022.08.18"]
[WhiteClock "0:00:00"]
[BlackClock "0:00:00"]

1. d4 {[%clk 0:00:00]}  c5 {[%clk 0:00:00]} 2. e3 {[%clk 0:00:00]}  e6 {[%clk 0:00:00]} 3. Nf3 {[%clk 0:00:00]}  d5 {[%clk 0:00:00]} 4. c3 {[%clk 0:00:00]}  Nc6 {[%clk 0:00:00]} 5. Nbd2 {[%clk 0:00:00]}  Nf6 {[%clk 0:00:00]} 6. Bd3 {[%clk 0:00:00]}  h6 {[%clk 0:00:00]} 7. O-O {[%clk 0:00:00]}  Bd6 {[%clk 0:00:00]} 8. Re1 {[%clk 0:00:00]}  O-O {[%clk 0:00:00]} 9. Qe2 {[%clk 0:00:00]}  c4 {[%clk 0:00:00]} 10. Bc2 {[%clk 0:00:00]}  e5 {[%clk 0:00:00]} 11. dxe5 {[%clk 0:00:00]}  Nxe5 {[%clk 0:00:00]} 12. Nxe5 {[%clk 0:00:00]}  Bxe5 {[%clk 0:00:00]} 13. e4 {[%clk 0:00:00]}  Qc7 {[%clk 0:00:00]} 14. h3 {[%clk 0:00:00]}  Re8 {[%clk 0:00:00]} 15. Kh1 {[%clk 0:00:00]}  Bd7 {[%clk 0:00:00]} 16. exd5 {[%clk 0:00:00]}  Bxc3 {[%clk 0:00:00]} 17. Qd1 {[%clk 0:00:00]}  Rxe1+ {[%clk 0:00:00]} 18. Qxe1 {[%clk 0:00:00]}  Bxd2 {[%clk 0:00:00]} 19. Qxd2 {[%clk 0:00:00]}  Re8 {[%clk 0:00:00]} 20. b3 {[%clk 0:00:00]}  b5 {[%clk 0:00:00]} 21. Bb2 {[%clk 0:00:00]}  Qd6 {[%clk 0:00:00]} 22. Rd1 {[%clk 0:00:00]}  a6 {[%clk 0:00:00]} 23. f4 {[%clk 0:00:00]}  Ne4 {[%clk 0:00:00]} 24. Bxe4 {[%clk 0:00:00]}  Rxe4 {[%clk 0:00:00]} 25. Be5 {[%clk 0:00:00]}  Qg6 {[%clk 0:00:00]} 26. Re1 {[%clk 0:00:00]}  Rxe1+ {[%clk 0:00:00]} 27. Qxe1 {[%clk 0:00:00]}  cxb3 {[%clk 0:00:00]} 28. axb3 {[%clk 0:00:00]}  Qd3 {[%clk 0:00:00]} 29. Qc3 {[%clk 0:00:00]}  Qxc3 {[%clk 0:00:00]} 30. Bxc3 {[%clk 0:00:00]}  f6 {[%clk 0:00:00]} 31. Kg1 {[%clk 0:00:00]}  Kf7 {[%clk 0:00:00]} 32. Kf2 {[%clk 0:00:00]}  g5 {[%clk 0:00:00]} 33. fxg5 {[%clk 0:00:00]}  fxg5 {[%clk 0:00:00]} 34. Ke3 {[%clk 0:00:00]}  h5 {[%clk 0:00:00]} 35. Be5 {[%clk 0:00:00]}  g4 {[%clk 0:00:00]} 36. h4 {[%clk 0:00:00]}  Bf5 {[%clk 0:00:00]} 37. Kf4 {[%clk 0:00:00]}  Bg6 {[%clk 0:00:00]} 38. b4 {[%clk 0:00:00]}  Ke7 {[%clk 0:00:00]} 39. Kg5 {[%clk 0:00:00]}  Bf7 {[%clk 0:00:00]} 40. d6+ {[%clk 0:00:00]}  Kd7 {[%clk 0:00:00]} 41. g3 {[%clk 0:00:00]}  Be8 {[%clk 0:00:00]} 42. Kf6 {[%clk 0:00:00]}  Kc6 {[%clk 0:00:00]} 43. Ke7 {[%clk 0:00:00]}  Bd7 {[%clk 0:00:00]} 44. Bd4 {[%clk 0:00:00]}  Bf5 {[%clk 0:00:00]} 45. Bc5 {[%clk 0:00:00]}  Bd7 {[%clk 0:00:00]} 46. Kd8 {[%clk 0:00:00]}  Bf5 {[%clk 0:00:00]} 47. Ke7 {[%clk 0:00:00]}  Bd7 {[%clk 0:00:00]} 48. Kf6 {[%clk 0:00:00]}  Be8 {[%clk 0:00:00]} 49. Kg5 {[%clk 0:00:00]}  Bf7 {[%clk 0:00:00]} 50. Kf4 {[%clk 0:00:00]}  Be8 {[%clk 0:00:00]} 51. Ke5 {[%clk 0:00:00]}  Bd7 {[%clk 0:00:00]} 52. Kd4 {[%clk 0:00:00]}  Be8 {[%clk 0:00:00]} 53. Kc3 {[%clk 0:00:00]}  Bf7 {[%clk 0:00:00]} 54. Kb2 {[%clk 0:00:00]}  Be8 {[%clk 0:00:00]} 55. Ka3 {[%clk 0:00:00]}  Bf7 {[%clk 0:00:00]} 56. d7 {[%clk 0:00:00]} 1-0


[Site "https://www.chess.com"]

[Event "Titled Tuesday Blitz August 16 Late 2022"]
[White "Floresvillar Gonzalez, Luis Migu"]
[Black "Shapiro, Daniel"]
[WhiteFideId "5100542"]
[BlackFideId "2001780"]
[WhiteElo "2040"]
[BlackElo "2284"]
[Result "0-1"]
[Round "08"]
[TimeControl "180+1"]
[Date "2022.08.18"]
[WhiteClock "0:00:00"]
[BlackClock "0:00:00"]

1. e4 {[%clk 0:00:00]}  c5 {[%clk 0:00:00]} 2. d4 {[%clk 0:00:00]}  cxd4 {[%clk 0:00:00]} 3. c3 {[%clk 0:00:00]}  dxc3 {[%clk 0:00:00]} 4. Nxc3 {[%clk 0:00:00]}  e6 {[%clk 0:00:00]} 5. Nf3 {[%clk 0:00:00]}  a6 {[%clk 0:00:00]} 6. Bc4 {[%clk 0:00:00]}  b5 {[%clk 0:00:00]} 7. Bb3 {[%clk 0:00:00]}  Ne7 {[%clk 0:00:00]} 8. Bg5 {[%clk 0:00:00]}  f6 {[%clk 0:00:00]} 9. Be3 {[%clk 0:00:00]}  Ng6 {[%clk 0:00:00]} 10. O-O {[%clk 0:00:00]}  Bb7 {[%clk 0:00:00]} 11. Qe2 {[%clk 0:00:00]}  Be7 {[%clk 0:00:00]} 12. Rfd1 {[%clk 0:00:00]}  Qc7 {[%clk 0:00:00]} 13. Rac1 {[%clk 0:00:00]}  Nc6 {[%clk 0:00:00]} 14. Nd5 {[%clk 0:00:00]}  exd5 {[%clk 0:00:00]} 15. exd5 {[%clk 0:00:00]}  Kf8 {[%clk 0:00:00]} 16. d6 {[%clk 0:00:00]}  Bxd6 {[%clk 0:00:00]} 17. Rxd6 {[%clk 0:00:00]}  Re8 {[%clk 0:00:00]} 18. Qd2 {[%clk 0:00:00]}  Ke7 {[%clk 0:00:00]} 19. Bc5 {[%clk 0:00:00]}  Kd8 {[%clk 0:00:00]} 20. Bd5 {[%clk 0:00:00]}  Nge5 {[%clk 0:00:00]} 21. Nxe5 {[%clk 0:00:00]}  Rxe5 {[%clk 0:00:00]} 22. f4 {[%clk 0:00:00]}  Ree8 {[%clk 0:00:00]} 23. Qf2 {[%clk 0:00:00]}  Kc8 {[%clk 0:00:00]} 24. Bxc6 {[%clk 0:00:00]}  dxc6 {[%clk 0:00:00]} 25. Rcd1 {[%clk 0:00:00]}  Rd8 {[%clk 0:00:00]} 26. Rxd8+ {[%clk 0:00:00]}  Rxd8 {[%clk 0:00:00]} 27. Rxd8+ {[%clk 0:00:00]}  Qxd8 {[%clk 0:00:00]} 28. h3 {[%clk 0:00:00]}  Qd5 {[%clk 0:00:00]} 29. Kh2 {[%clk 0:00:00]}  Qxa2 {[%clk 0:00:00]} 30. Qf3 {[%clk 0:00:00]}  Qe6 {[%clk 0:00:00]} 31. f5 {[%clk 0:00:00]}  Qe5+ {[%clk 0:00:00]} 32. Qg3 {[%clk 0:00:00]}  Qxc5 {[%clk 0:00:00]} 33. Qxg7 {[%clk 0:00:00]}  Qxf5 {[%clk 0:00:00]} 34. Qf8+ {[%clk 0:00:00]}  Kc7 {[%clk 0:00:00]} 35. Qf7+ {[%clk 0:00:00]}  Qd7 {[%clk 0:00:00]} 36. Qxf6 {[%clk 0:00:00]}  Qd6+ {[%clk 0:00:00]} 37. Qxd6+ {[%clk 0:00:00]}  Kxd6 {[%clk 0:00:00]} 38. g4 {[%clk 0:00:00]}  a5 {[%clk 0:00:00]} 39. h4 {[%clk 0:00:00]}  a4 {[%clk 0:00:00]} 40. g5 {[%clk 0:00:00]}  Ke5 {[%clk 0:00:00]} 41. Kg3 {[%clk 0:00:00]}  Kf5 {[%clk 0:00:00]} 42. Kf3 {[%clk 0:00:00]}  b4 {[%clk 0:00:00]} 43. Ke3 {[%clk 0:00:00]}  a3 {[%clk 0:00:00]} 44. bxa3 {[%clk 0:00:00]}  bxa3 {[%clk 0:00:00]} 0-1


[Site "https://www.chess.com"]

[Event "Titled Tuesday Blitz August 16 Late 2022"]
[White "Goryachkina, Aleksandra"]
[Black "Pichot, Alan"]
[WhiteFideId "4147103"]
[BlackFideId "110973"]
[WhiteElo "2426"]
[BlackElo "2578"]
[Result "1-0"]
[Round "08"]
[TimeControl "180+1"]
[Date "2022.08.16"]
[WhiteClock "0:00:50"]
[BlackClock "0:00:35"]

1. e4 {[%clk 0:02:59]}  c5 {[%clk 0:02:54]} 2. Nf3 {[%clk 0:02:59]}  e6 {[%clk 0:02:54]} 3. c3 {[%clk 0:02:57]}  Nf6 {[%clk 0:02:52]} 4. e5 {[%clk 0:02:58]}  Nd5 {[%clk 0:02:52]} 5. Bc4 {[%clk 0:02:57]}  Nb6 {[%clk 0:02:51]} 6. Bb3 {[%clk 0:02:57]}  d6 {[%clk 0:02:43]} 7. exd6 {[%clk 0:02:40]}  c4 {[%clk 0:02:43]} 8. Bc2 {[%clk 0:02:40]}  Bxd6 {[%clk 0:02:43]} 9. O-O {[%clk 0:02:39]}  O-O {[%clk 0:02:42]} 10. d4 {[%clk 0:02:36]}  N8d7 {[%clk 0:02:19]} 11. Bg5 {[%clk 0:02:20]}  Qc7 {[%clk 0:02:18]} 12. Nbd2 {[%clk 0:02:19]}  h6 {[%clk 0:02:16]} 13. Bh4 {[%clk 0:02:20]}  f5 {[%clk 0:02:04]} 14. Re1 {[%clk 0:02:17]}  Nf6 {[%clk 0:02:03]} 15. Bxf6 {[%clk 0:02:08]}  gxf6 {[%clk 0:02:00]} 16. b3 {[%clk 0:02:02]}  e5 {[%clk 0:01:24]} 17. bxc4 {[%clk 0:01:44]}  e4 {[%clk 0:01:20]} 18. c5 {[%clk 0:01:45]}  exf3 {[%clk 0:01:08]} 19. cxd6 {[%clk 0:01:44]}  Qxc3 {[%clk 0:01:08]} 20. Nxf3 {[%clk 0:01:42]}  Bd7 {[%clk 0:01:04]} 21. Bb3+ {[%clk 0:01:34]}  Kg7 {[%clk 0:01:04]} 22. Re7+ {[%clk 0:01:33]}  Kh8 {[%clk 0:01:04]} 23. Nh4 {[%clk 0:01:28]}  Be8 {[%clk 0:01:02]} 24. Nxf5 {[%clk 0:01:20]}  Bg6 {[%clk 0:00:56]} 25. Nh4 {[%clk 0:01:16]}  Bh7 {[%clk 0:00:50]} 26. Rc1 {[%clk 0:01:15]}  Qb2 {[%clk 0:00:50]} 27. Rcc7 {[%clk 0:01:14]}  Bb1 {[%clk 0:00:42]} 28. Bc2 {[%clk 0:00:51]}  Bxc2 {[%clk 0:00:39]} 29. Rxc2 {[%clk 0:00:51]}  Qb4 {[%clk 0:00:35]} 30. Rcc7 {[%clk 0:00:50]} 1-0


[Site "https://www.chess.com"]